[Event "Titled Tuesday Blitz July 25 Early 2023"]
[White "Movahed, Sina"]
[Black "Plotkin, Mark"]
[WhiteFideId "42520835"]
[BlackFideId "2611651"]
[WhiteElo "2979"]
[BlackElo "2819"]
[Result "1-0"]
[Round "4"]
[TimeControl "180+2"]
[Date "2023.07.25"]
[WhiteClock "0:00:46"]
[BlackClock "0:00:17"]
[Board "11"]

1. Nf3 {[%clk 0:03:00]}  f5 {[%clk 0:02:58]} 2. c4 {[%clk 0:02:59]}  Nf6 {[%clk 0:02:58]} 3. Nc3 {[%clk 0:03:00]}  c6 {[%clk 0:02:52]} 4. d4 {[%clk 0:02:57]}  d5 {[%clk 0:02:52]} 5. Bf4 {[%clk 0:02:56]}  e6 {[%clk 0:02:52]} 6. e3 {[%clk 0:02:56]}  Bd6 {[%clk 0:02:52]} 7. Bxd6 {[%clk 0:02:56]}  Qxd6 {[%clk 0:02:52]} 8. Be2 {[%clk 0:02:52]}  O-O {[%clk 0:02:53]} 9. O-O {[%clk 0:02:53]}  Nbd7 {[%clk 0:02:46]} 10. Rb1 {[%clk 0:02:52]}  Ne4 {[%clk 0:02:42]} 11. Qc2 {[%clk 0:02:50]}  b6 {[%clk 0:02:32]} 12. b4 {[%clk 0:02:49]}  Bb7 {[%clk 0:02:30]} 13. c5 {[%clk 0:02:30]}  Qc7 {[%clk 0:02:25]} 14. Rb2 {[%clk 0:02:22]}  b5 {[%clk 0:02:23]} 15. a4 {[%clk 0:02:21]}  a6 {[%clk 0:02:20]} 16. Ra1 {[%clk 0:02:21]}  Ndf6 {[%clk 0:01:50]} 17. Ne5 {[%clk 0:02:16]}  Nd7 {[%clk 0:01:29]} 18. Nxd7 {[%clk 0:02:10]}  Qxd7 {[%clk 0:01:30]} 19. Bf1 {[%clk 0:02:04]}  Rae8 {[%clk 0:01:20]} 20. axb5 {[%clk 0:02:03]}  axb5 {[%clk 0:01:19]} 21. Ra7 {[%clk 0:02:01]}  Rf7 {[%clk 0:01:17]} 22. Ne2 {[%clk 0:01:59]}  g5 {[%clk 0:01:13]} 23. Nc1 {[%clk 0:01:51]}  f4 {[%clk 0:01:10]} 24. exf4 {[%clk 0:01:47]}  gxf4 {[%clk 0:01:11]} 25. Nd3 {[%clk 0:01:47]}  Qc7 {[%clk 0:01:05]} 26. f3 {[%clk 0:01:43]}  Nf6 {[%clk 0:01:02]} 27. Rb1 {[%clk 0:01:40]}  Nd7 {[%clk 0:00:59]} 28. Re1 {[%clk 0:01:39]}  Qb8 {[%clk 0:00:55]} 29. Raa1 {[%clk 0:01:29]}  Rf5 {[%clk 0:00:49]} 30. Nf2 {[%clk 0:01:25]}  Nf6 {[%clk 0:00:45]} 31. Nd3 {[%clk 0:01:12]}  Nd7 {[%clk 0:00:41]} 32. Re2 {[%clk 0:01:12]}  Bc8 {[%clk 0:00:34]} 33. Rae1 {[%clk 0:01:11]}  Kf7 {[%clk 0:00:34]} 34. Nf2 {[%clk 0:01:02]}  Nf6 {[%clk 0:00:33]} 35. Ng4 {[%clk 0:01:03]}  Rg8 {[%clk 0:00:27]} 36. Nh6+ {[%clk 0:01:02]}  Kf8 {[%clk 0:00:27]} 37. Nxf5 {[%clk 0:01:01]}  exf5 {[%clk 0:00:28]} 38. Re5 {[%clk 0:01:01]}  Qc7 {[%clk 0:00:26]} 39. Qd2 {[%clk 0:01:01]}  Nh5 {[%clk 0:00:25]} 40. Re8+ {[%clk 0:00:59]}  Kf7 {[%clk 0:00:26]} 41. Rxg8 {[%clk 0:00:59]}  Kxg8 {[%clk 0:00:27]} 42. Re5 {[%clk 0:00:59]}  Kf7 {[%clk 0:00:27]} 43. Qe1 {[%clk 0:00:59]}  Qd8 {[%clk 0:00:26]} 44. Bd3 {[%clk 0:00:59]}  Qf6 {[%clk 0:00:25]} 45. Qa1 {[%clk 0:00:59]}  Ng7 {[%clk 0:00:22]} 46. Qa7+ {[%clk 0:00:58]}  Kg6 {[%clk 0:00:21]} 47. Qc7 {[%clk 0:00:57]}  Ba6 {[%clk 0:00:20]} 48. h4 {[%clk 0:00:53]}  Qxh4 {[%clk 0:00:19]} 49. Qxc6+ {[%clk 0:00:53]}  Kg5 {[%clk 0:00:19]} 50. Qxa6 {[%clk 0:00:48]}  Nh5 {[%clk 0:00:17]} 51. Rxf5# {[%clk 0:00:46]} 1-0


[Site "https://www.chess.com"]

[Event "Titled Tuesday Blitz July 25 Early 2023"]
[White "Ashraf, Artin"]
[Black "Bok, Benjamin"]
[WhiteFideId "22514805"]
[BlackFideId "1017063"]
[WhiteElo "2805"]
[BlackElo "2965"]
[Result "0-1"]
[Round "4"]
[TimeControl "180+2"]
[Date "2023.07.25"]
[WhiteClock "0:00:02"]
[BlackClock "0:00:13"]
[Board "12"]

1. c4 {[%clk 0:02:14]}  Nf6 {[%clk 0:02:56]} 2. Nf3 {[%clk 0:02:12]}  e6 {[%clk 0:02:54]} 3. Nc3 {[%clk 0:02:12]}  d5 {[%clk 0:02:54]} 4. d4 {[%clk 0:02:12]}  c6 {[%clk 0:02:53]} 5. cxd5 {[%clk 0:02:06]}  exd5 {[%clk 0:02:54]} 6. Qc2 {[%clk 0:02:06]}  g6 {[%clk 0:02:54]} 7. Bg5 {[%clk 0:02:04]}  Be7 {[%clk 0:02:54]} 8. e3 {[%clk 0:02:03]}  Bf5 {[%clk 0:02:54]} 9. Bd3 {[%clk 0:02:02]}  Bxd3 {[%clk 0:02:54]} 10. Qxd3 {[%clk 0:02:03]}  Nbd7 {[%clk 0:02:55]} 11. O-O {[%clk 0:02:02]}  O-O {[%clk 0:02:54]} 12. Rab1 {[%clk 0:01:59]}  a5 {[%clk 0:02:54]} 13. Bh6 {[%clk 0:01:53]}  Re8 {[%clk 0:02:54]} 14. h3 {[%clk 0:01:54]}  Bd6 {[%clk 0:02:46]} 15. Bf4 {[%clk 0:01:48]}  Qc7 {[%clk 0:02:23]} 16. Bxd6 {[%clk 0:01:44]}  Qxd6 {[%clk 0:02:24]} 17. Qc2 {[%clk 0:01:38]}  Kg7 {[%clk 0:02:23]} 18. a3 {[%clk 0:01:35]}  h6 {[%clk 0:02:10]} 19. Rfc1 {[%clk 0:01:30]}  Re7 {[%clk 0:01:56]} 20. b4 {[%clk 0:01:26]}  axb4 {[%clk 0:01:07]} 21. axb4 {[%clk 0:01:27]}  b5 {[%clk 0:01:05]} 22. Ne2 {[%clk 0:01:13]}  Ra6 {[%clk 0:01:05]} 23. Nf4 {[%clk 0:01:05]}  Ne4 {[%clk 0:01:04]} 24. Nd3 {[%clk 0:01:05]}  Re8 {[%clk 0:01:02]} 25. Nfe5 {[%clk 0:01:00]}  Nxe5 {[%clk 0:01:00]} 26. dxe5 {[%clk 0:00:58]}  Qe7 {[%clk 0:00:58]} 27. Ra1 {[%clk 0:00:45]}  Rea8 {[%clk 0:00:56]} 28. Qb2 {[%clk 0:00:44]}  Kh7 {[%clk 0:00:42]} 29. f3 {[%clk 0:00:33]}  Ng3 {[%clk 0:00:29]} 30. Nc5 {[%clk 0:00:27]}  Ne2+ {[%clk 0:00:19]} 31. Kf1 {[%clk 0:00:13]}  Nxc1 {[%clk 0:00:19]} 32. Rxa6 {[%clk 0:00:12]}  Rxa6 {[%clk 0:00:19]} 33. Nxa6 {[%clk 0:00:12]}  Nd3 {[%clk 0:00:20]} 34. Qd4 {[%clk 0:00:07]}  Nxe5 {[%clk 0:00:19]} 35. Nc5 {[%clk 0:00:06]}  Nc4 {[%clk 0:00:20]} 36. e4 {[%clk 0:00:07]}  Qg5 {[%clk 0:00:17]} 37. Nd7 {[%clk 0:00:03]}  Qe3 {[%clk 0:00:11]} 38. Nf6+ {[%clk 0:00:03]}  Kg7 {[%clk 0:00:11]} 39. Ne8+ {[%clk 0:00:02]}  Kf8 {[%clk 0:00:11]} 40. Qh8+ {[%clk 0:00:03]}  Ke7 {[%clk 0:00:12]} 41. Qf6+ {[%clk 0:00:02]}  Kxe8 {[%clk 0:00:12]} 42. Qxc6+ {[%clk 0:00:02]}  Kf8 {[%clk 0:00:13]} 43. Qc5+ {[%clk 0:00:01]}  Qxc5 {[%clk 0:00:13]} 44. bxc5 {[%clk 0:00:02]}  dxe4 {[%clk 0:00:13]} 0-1


[Site "https://www.chess.com"]

[Event "Titled Tuesday Blitz July 25 Early 2023"]
[White "Kovalev, Vladislav"]
[Black "Nagy, Gabor"]
[WhiteFideId "13504398"]
[BlackFideId "737119"]
[WhiteElo "2959"]
[BlackElo "2800"]
[Result "1-0"]
[Round "4"]
[TimeControl "180+2"]
[Date "2023.07.25"]
[WhiteClock "0:00:12"]
[BlackClock "0:00:01"]
[Board "14"]

1. e4 {[%clk 0:03:00]}  c6 {[%clk 0:02:58]} 2. d4 {[%clk 0:03:00]}  d5 {[%clk 0:02:58]} 3. exd5 {[%clk 0:03:01]}  cxd5 {[%clk 0:02:58]} 4. Bd3 {[%clk 0:03:02]}  Nc6 {[%clk 0:02:58]} 5. c3 {[%clk 0:03:03]}  Qc7 {[%clk 0:02:58]} 6. h3 {[%clk 0:03:03]}  g6 {[%clk 0:02:52]} 7. Nf3 {[%clk 0:03:02]}  Bf5 {[%clk 0:02:52]} 8. Be2 {[%clk 0:03:03]}  Bg7 {[%clk 0:02:50]} 9. O-O {[%clk 0:03:03]}  Nf6 {[%clk 0:02:50]} 10. Be3 {[%clk 0:03:02]}  O-O {[%clk 0:02:49]} 11. Nbd2 {[%clk 0:03:02]}  Ne4 {[%clk 0:02:47]} 12. Nxe4 {[%clk 0:02:57]}  Bxe4 {[%clk 0:02:45]} 13. Nd2 {[%clk 0:02:58]}  Bf5 {[%clk 0:02:44]} 14. Re1 {[%clk 0:02:59]}  Rfe8 {[%clk 0:02:42]} 15. a4 {[%clk 0:02:57]}  Rad8 {[%clk 0:02:33]} 16. Nb3 {[%clk 0:02:33]}  a6 {[%clk 0:02:23]} 17. a5 {[%clk 0:02:32]}  e5 {[%clk 0:02:17]} 18. dxe5 {[%clk 0:02:31]}  Qxe5 {[%clk 0:02:15]} 19. Qd2 {[%clk 0:02:22]}  Qd6 {[%clk 0:02:11]} 20. Bc5 {[%clk 0:02:11]}  Qb8 {[%clk 0:02:07]} 21. Bb6 {[%clk 0:02:04]}  Rd6 {[%clk 0:02:05]} 22. Bf3 {[%clk 0:02:02]}  Be4 {[%clk 0:01:57]} 23. Qf4 {[%clk 0:01:27]}  Be5 {[%clk 0:01:51]} 24. Qe3 {[%clk 0:01:27]}  Bg7 {[%clk 0:01:38]} 25. Rad1 {[%clk 0:01:18]}  h5 {[%clk 0:01:34]} 26. Nc5 {[%clk 0:01:09]}  f5 {[%clk 0:01:06]} 27. Bxe4 {[%clk 0:00:45]}  fxe4 {[%clk 0:01:02]} 28. f3 {[%clk 0:00:36]}  d4 {[%clk 0:00:59]} 29. Qf4 {[%clk 0:00:37]}  Be5 {[%clk 0:00:55]} 30. Qg5 {[%clk 0:00:28]}  dxc3 {[%clk 0:00:50]} 31. Nxe4 {[%clk 0:00:21]}  Rde6 {[%clk 0:00:38]} 32. bxc3 {[%clk 0:00:19]}  Bg7 {[%clk 0:00:16]} 33. Rd7 {[%clk 0:00:18]}  Qe5 {[%clk 0:00:15]} 34. Qxe5 {[%clk 0:00:17]}  Nxe5 {[%clk 0:00:16]} 35. Rxb7 {[%clk 0:00:18]}  g5 {[%clk 0:00:14]} 36. Nxg5 {[%clk 0:00:14]}  Nxf3+ {[%clk 0:00:15]} 37. Nxf3 {[%clk 0:00:15]}  Rxe1+ {[%clk 0:00:15]} 38. Nxe1 {[%clk 0:00:15]}  Rxe1+ {[%clk 0:00:16]} 39. Kf2 {[%clk 0:00:16]}  Bxc3 {[%clk 0:00:15]} 40. Ra7 {[%clk 0:00:15]}  Ra1 {[%clk 0:00:13]} 41. Rxa6 {[%clk 0:00:16]}  Kf7 {[%clk 0:00:12]} 42. Ra8 {[%clk 0:00:15]}  Rb1 {[%clk 0:00:10]} 43. Be3 {[%clk 0:00:12]}  Rb2+ {[%clk 0:00:06]} 44. Kf3 {[%clk 0:00:13]}  Rb3 {[%clk 0:00:06]} 45. Ke2 {[%clk 0:00:12]}  Ra3 {[%clk 0:00:06]} 46. a6 {[%clk 0:00:12]}  Kg7 {[%clk 0:00:03]} 47. a7 {[%clk 0:00:12]}  Bb4 {[%clk 0:00:01]} 48. Rc8 {[%clk 0:00:12]}  Ra2+ {[%clk 0:00:01]} 49. Kf3 {[%clk 0:00:12]}  Ra3 {[%clk 0:00:01]} 50. a8=Q {[%clk 0:00:12]} 1-0


[Site "https://www.chess.com"]

[Event "Titled Tuesday Blitz July 25 Early 2023"]
[White "Csonka, Balazs"]
[Black "Madaminov, Mukhiddin"]
[WhiteFideId "742910"]
[BlackFideId "14210703"]
[WhiteElo "2745"]
[BlackElo "2928"]
[Result "1/2-1/2"]
[Round "4"]
[TimeControl "180+2"]
[Date "2023.07.25"]
[WhiteClock "0:00:02"]
[BlackClock "0:00:06"]
[Board "18"]

1. d4 {[%clk 0:03:00]}  e6 {[%clk 0:02:59]} 2. Nf3 {[%clk 0:02:57]}  Nf6 {[%clk 0:02:58]} 3. c4 {[%clk 0:02:56]}  b6 {[%clk 0:02:59]} 4. g3 {[%clk 0:02:55]}  Ba6 {[%clk 0:03:00]} 5. Qc2 {[%clk 0:02:54]}  d5 {[%clk 0:02:48]} 6. cxd5 {[%clk 0:02:51]}  exd5 {[%clk 0:02:49]} 7. Bg2 {[%clk 0:02:48]}  Bb4+ {[%clk 0:02:49]} 8. Bd2 {[%clk 0:02:26]}  Bd6 {[%clk 0:02:48]} 9. Bg5 {[%clk 0:02:22]}  O-O {[%clk 0:02:46]} 10. O-O {[%clk 0:02:21]}  h6 {[%clk 0:02:42]} 11. Bxf6 {[%clk 0:02:20]}  Qxf6 {[%clk 0:02:42]} 12. Nc3 {[%clk 0:02:21]}  c6 {[%clk 0:02:32]} 13. Rfe1 {[%clk 0:02:20]}  Qd8 {[%clk 0:02:19]} 14. e4 {[%clk 0:02:03]}  dxe4 {[%clk 0:02:18]} 15. Qxe4 {[%clk 0:01:55]}  Bb7 {[%clk 0:01:58]} 16. Ne5 {[%clk 0:01:54]}  a6 {[%clk 0:01:49]} 17. Rad1 {[%clk 0:01:41]}  Ra7 {[%clk 0:01:49]} 18. Qg4 {[%clk 0:01:32]}  Ba8 {[%clk 0:01:45]} 19. Be4 {[%clk 0:01:11]}  Qg5 {[%clk 0:01:37]} 20. Qh3 {[%clk 0:00:57]}  Rc7 {[%clk 0:01:14]} 21. f4 {[%clk 0:00:49]}  Qd8 {[%clk 0:01:09]} 22. g4 {[%clk 0:00:36]}  Nd7 {[%clk 0:00:28]} 23. g5 {[%clk 0:00:36]}  Nxe5 {[%clk 0:00:28]} 24. dxe5 {[%clk 0:00:35]}  Bc5+ {[%clk 0:00:29]} 25. Kh1 {[%clk 0:00:32]}  Qc8 {[%clk 0:00:24]} 26. Bf5 {[%clk 0:00:28]}  Qe8 {[%clk 0:00:22]} 27. gxh6 {[%clk 0:00:27]}  g6 {[%clk 0:00:23]} 28. Ne4 {[%clk 0:00:22]}  Be7 {[%clk 0:00:24]} 29. Nd6 {[%clk 0:00:20]}  c5+ {[%clk 0:00:22]} 30. Kg1 {[%clk 0:00:20]}  Qa4 {[%clk 0:00:16]} 31. Be4 {[%clk 0:00:14]}  Bxe4 {[%clk 0:00:14]} 32. Nxe4 {[%clk 0:00:14]}  Kh7 {[%clk 0:00:12]} 33. Rd3 {[%clk 0:00:07]}  Qxa2 {[%clk 0:00:12]} 34. f5 {[%clk 0:00:07]}  gxf5 {[%clk 0:00:09]} 35. Qxf5+ {[%clk 0:00:08]}  Kh8 {[%clk 0:00:10]} 36. Rg3 {[%clk 0:00:08]}  Qe6 {[%clk 0:00:09]} 37. Qxe6 {[%clk 0:00:05]}  fxe6 {[%clk 0:00:10]} 38. Rg7 {[%clk 0:00:06]}  Bd8 {[%clk 0:00:09]} 39. Ng5 {[%clk 0:00:04]}  Re8 {[%clk 0:00:01]} 40. Nf7+ {[%clk 0:00:04]}  Rxf7 {[%clk 0:00:02]} 41. Rxf7 {[%clk 0:00:05]}  Bg5 {[%clk 0:00:03]} 42. Rb7 {[%clk 0:00:05]}  Bxh6 {[%clk 0:00:03]} 43. Rxb6 {[%clk 0:00:05]}  a5 {[%clk 0:00:04]} 44. Rb5 {[%clk 0:00:05]}  Kg7 {[%clk 0:00:04]} 45. Re4 {[%clk 0:00:05]}  Bd2 {[%clk 0:00:05]} 46. Rxc5 {[%clk 0:00:05]}  Bb4 {[%clk 0:00:05]} 47. Rb5 {[%clk 0:00:05]}  Kg6 {[%clk 0:00:05]} 48. Rbxb4 {[%clk 0:00:04]}  axb4 {[%clk 0:00:05]} 49. Rxb4 {[%clk 0:00:05]}  Kf5 {[%clk 0:00:06]} 50. Rb5 {[%clk 0:00:06]}  Rc8 {[%clk 0:00:06]} 51. Kf2 {[%clk 0:00:06]}  Rc2+ {[%clk 0:00:06]} 52. Kg3 {[%clk 0:00:06]}  Kg5 {[%clk 0:00:05]} 53. Rb6 {[%clk 0:00:05]}  Kf5 {[%clk 0:00:05]} 54. Rb5 {[%clk 0:00:06]}  Kg5 {[%clk 0:00:05]} 55. h3 {[%clk 0:00:06]}  Rd2 {[%clk 0:00:05]} 56. Rb3 {[%clk 0:00:04]}  Kf5 {[%clk 0:00:05]} 57. Rb5 {[%clk 0:00:04]}  Rd3+ {[%clk 0:00:04]} 58. Kh4 {[%clk 0:00:05]}  Rd4+ {[%clk 0:00:05]} 59. Kh5 {[%clk 0:00:04]}  Rd8 {[%clk 0:00:05]} 60. Kh6 {[%clk 0:00:04]}  Rh8+ {[%clk 0:00:05]} 61. Kg7 {[%clk 0:00:04]}  Rxh3 {[%clk 0:00:06]} 62. Kf7 {[%clk 0:00:04]}  Rh7+ {[%clk 0:00:06]} 63. Ke8 {[%clk 0:00:05]}  Ra7 {[%clk 0:00:06]} 64. b4 {[%clk 0:00:04]}  Ke4 {[%clk 0:00:06]} 65. Kf8 {[%clk 0:00:04]}  Kd4 {[%clk 0:00:06]} 66. Ke8 {[%clk 0:00:04]}  Kc4 {[%clk 0:00:05]} 67. Rc5+ {[%clk 0:00:04]}  Kd4 {[%clk 0:00:05]} 68. Rb5 {[%clk 0:00:03]}  Rc7 {[%clk 0:00:05]} 69. Kd8 {[%clk 0:00:03]}  Ra7 {[%clk 0:00:06]} 70. Ke8 {[%clk 0:00:02]} 1/2-1/2


[Site "https://www.chess.com"]

[Event "Titled Tuesday Blitz July 25 Early 2023"]
[White "De Silva, L M S T"]
[Black "Tari, Aryan"]
[WhiteFideId "9953698"]
[BlackFideId "1510045"]
[WhiteElo "2737"]
[BlackElo "2916"]
[Result "0-1"]
[Round "4"]
[TimeControl "180+2"]
[Date "2023.07.25"]
[WhiteClock "0:02:21"]
[BlackClock "0:01:57"]
[Board "19"]

1. e4 {[%clk 0:03:00]}  e5 {[%clk 0:02:47]} 2. Nf3 {[%clk 0:02:59]}  Nc6 {[%clk 0:02:48]} 3. Bb5 {[%clk 0:02:44]}  Nge7 {[%clk 0:02:47]} 4. O-O {[%clk 0:02:44]}  Ng6 {[%clk 0:02:44]} 5. d4 {[%clk 0:02:42]}  exd4 {[%clk 0:02:43]} 6. Nxd4 {[%clk 0:02:43]}  Bc5 {[%clk 0:02:38]} 7. Be3 {[%clk 0:02:33]}  Bxd4 {[%clk 0:01:57]} 8. Bxd4 {[%clk 0:02:34]}  Nxd4 {[%clk 0:01:58]} 9. Qxd4 {[%clk 0:02:35]}  Qg5 {[%clk 0:01:58]} 10. Nc3 {[%clk 0:02:21]}  Nh4 {[%clk 0:01:57]} 0-1


[Site "https://www.chess.com"]

[Event "Titled Tuesday Blitz July 25 Early 2023"]
[White "Harsha Bharathakoti"]
[Black "Richter, Paul"]
[WhiteFideId "5078776"]
[BlackFideId "2046350"]
[WhiteElo "2879"]
[BlackElo "2557"]
[Result "1-0"]
[Round "4"]
[TimeControl "180+2"]
[Date "2023.07.25"]
[WhiteClock "0:00:37"]
[BlackClock "0:00:19"]
[Board "23"]

1. Nf3 {[%clk 0:03:00]}  Nf6 {[%clk 0:02:59]} 2. b3 {[%clk 0:03:00]}  g6 {[%clk 0:02:59]} 3. Bb2 {[%clk 0:03:01]}  Bg7 {[%clk 0:03:00]} 4. g3 {[%clk 0:03:01]}  O-O {[%clk 0:03:00]} 5. Bg2 {[%clk 0:03:02]}  d6 {[%clk 0:03:00]} 6. d4 {[%clk 0:03:02]}  Nbd7 {[%clk 0:03:00]} 7. O-O {[%clk 0:03:03]}  Re8 {[%clk 0:03:00]} 8. a4 {[%clk 0:02:55]}  c6 {[%clk 0:02:59]} 9. Nbd2 {[%clk 0:02:46]}  Qc7 {[%clk 0:02:54]} 10. Nc4 {[%clk 0:02:04]}  b6 {[%clk 0:02:38]} 11. Re1 {[%clk 0:02:04]}  Ba6 {[%clk 0:02:29]} 12. Ncd2 {[%clk 0:02:01]}  e5 {[%clk 0:02:26]} 13. e4 {[%clk 0:01:56]}  Rad8 {[%clk 0:02:18]} 14. c4 {[%clk 0:01:49]}  exd4 {[%clk 0:02:13]} 15. Bxd4 {[%clk 0:01:50]}  Nc5 {[%clk 0:02:03]} 16. Qc2 {[%clk 0:01:46]}  Bc8 {[%clk 0:01:59]} 17. h3 {[%clk 0:01:40]}  a5 {[%clk 0:01:50]} 18. Rad1 {[%clk 0:01:36]}  Re7 {[%clk 0:01:46]} 19. Qc3 {[%clk 0:01:27]}  Nh5 {[%clk 0:01:46]} 20. Bxg7 {[%clk 0:01:26]}  Nxg7 {[%clk 0:01:47]} 21. Nd4 {[%clk 0:01:20]}  Bb7 {[%clk 0:01:22]} 22. Re3 {[%clk 0:01:20]}  Rde8 {[%clk 0:01:16]} 23. Rde1 {[%clk 0:01:21]}  Qd7 {[%clk 0:01:04]} 24. Nf1 {[%clk 0:01:09]}  Nge6 {[%clk 0:00:59]} 25. Nf3 {[%clk 0:00:59]}  Qc7 {[%clk 0:00:51]} 26. N1h2 {[%clk 0:00:55]}  Nd7 {[%clk 0:00:48]} 27. Ng4 {[%clk 0:00:51]}  h5 {[%clk 0:00:29]} 28. Nh6+ {[%clk 0:00:51]}  Kh7 {[%clk 0:00:28]} 29. Nf5 {[%clk 0:00:52]}  Ne5 {[%clk 0:00:18]} 30. Nxe7 {[%clk 0:00:50]}  Nxf3+ {[%clk 0:00:18]} 31. Bxf3 {[%clk 0:00:49]}  Qxe7 {[%clk 0:00:18]} 32. h4 {[%clk 0:00:44]}  Kg8 {[%clk 0:00:18]} 33. Bg2 {[%clk 0:00:45]}  Nc5 {[%clk 0:00:17]} 34. e5 {[%clk 0:00:38]}  Qd8 {[%clk 0:00:17]} 35. exd6 {[%clk 0:00:38]}  Rxe3 {[%clk 0:00:18]} 36. Rxe3 {[%clk 0:00:37]}  Qxd6 {[%clk 0:00:19]} 37. Re8+ {[%clk 0:00:37]} 1-0


[Site "https://www.chess.com"]

[Event "Titled Tuesday Blitz July 25 Early 2023"]
[White "Giri, Anish"]
[Black "Ozates, Tuna"]
[WhiteFideId "24116068"]
[BlackFideId "6354521"]
[WhiteElo "3060"]
[BlackElo "2586"]
[Result "1/2-1/2"]
[Round "4"]
[TimeControl "180+2"]
[Date "2023.07.25"]
[WhiteClock "0:00:17"]
[BlackClock "0:00:32"]
[Board "24"]

1. e4 {[%clk 0:03:00]}  c5 {[%clk 0:02:58]} 2. Nf3 {[%clk 0:03:01]}  Nc6 {[%clk 0:02:58]} 3. Bb5 {[%clk 0:03:01]}  g6 {[%clk 0:02:57]} 4. Bxc6 {[%clk 0:02:57]}  bxc6 {[%clk 0:02:58]} 5. O-O {[%clk 0:02:58]}  Bg7 {[%clk 0:02:58]} 6. Re1 {[%clk 0:02:58]}  Nh6 {[%clk 0:02:56]} 7. c3 {[%clk 0:02:54]}  O-O {[%clk 0:02:56]} 8. d4 {[%clk 0:02:55]}  cxd4 {[%clk 0:02:57]} 9. cxd4 {[%clk 0:02:55]}  d5 {[%clk 0:02:57]} 10. e5 {[%clk 0:02:56]}  f6 {[%clk 0:02:57]} 11. Nbd2 {[%clk 0:02:53]}  g5 {[%clk 0:02:57]} 12. e6 {[%clk 0:02:22]}  Qd6 {[%clk 0:02:23]} 13. Qe2 {[%clk 0:02:22]}  g4 {[%clk 0:02:17]} 14. Nh4 {[%clk 0:02:21]}  f5 {[%clk 0:02:17]} 15. Nb3 {[%clk 0:02:20]}  f4 {[%clk 0:01:58]} 16. g3 {[%clk 0:02:12]}  f3 {[%clk 0:01:51]} 17. Qe3 {[%clk 0:02:13]}  Nf5 {[%clk 0:01:46]} 18. Nxf5 {[%clk 0:02:03]}  Rxf5 {[%clk 0:01:47]} 19. Nc5 {[%clk 0:01:58]}  Rh5 {[%clk 0:01:21]} 20. h3 {[%clk 0:01:23]}  Rxh3 {[%clk 0:01:09]} 21. Qf4 {[%clk 0:00:59]}  Qxf4 {[%clk 0:01:01]} 22. Bxf4 {[%clk 0:01:00]}  Bxd4 {[%clk 0:01:01]} 23. Rac1 {[%clk 0:01:00]}  Bxb2 {[%clk 0:00:41]} 24. Rc2 {[%clk 0:01:00]}  Bd4 {[%clk 0:00:41]} 25. Nb3 {[%clk 0:00:56]}  Bb6 {[%clk 0:00:36]} 26. Re5 {[%clk 0:00:50]}  h6 {[%clk 0:00:32]} 27. Nc5 {[%clk 0:00:45]}  Bxc5 {[%clk 0:00:14]} 28. Rxc5 {[%clk 0:00:45]}  Rb8 {[%clk 0:00:15]} 29. Rxc6 {[%clk 0:00:34]}  Rb1+ {[%clk 0:00:14]} 30. Rc1 {[%clk 0:00:29]}  Rxc1+ {[%clk 0:00:11]} 31. Bxc1 {[%clk 0:00:30]}  Kg7 {[%clk 0:00:07]} 32. Bb2 {[%clk 0:00:25]}  Kg6 {[%clk 0:00:07]} 33. Rxd5 {[%clk 0:00:06]}  Rh5 {[%clk 0:00:08]} 34. Rxh5 {[%clk 0:00:03]}  Kxh5 {[%clk 0:00:09]} 35. Bd4 {[%clk 0:00:03]}  Bxe6 {[%clk 0:00:09]} 36. Bxa7 {[%clk 0:00:03]}  Bxa2 {[%clk 0:00:09]} 37. Bc5 {[%clk 0:00:03]}  e5 {[%clk 0:00:09]} 38. Bd6 {[%clk 0:00:03]}  e4 {[%clk 0:00:09]} 39. Bf4 {[%clk 0:00:04]}  Kg6 {[%clk 0:00:10]} 40. Be3 {[%clk 0:00:04]}  h5 {[%clk 0:00:11]} 41. Bf4 {[%clk 0:00:05]}  Kf5 {[%clk 0:00:11]} 42. Be3 {[%clk 0:00:05]}  Bc4 {[%clk 0:00:12]} 43. Kh2 {[%clk 0:00:06]}  Be2 {[%clk 0:00:13]} 44. Kg1 {[%clk 0:00:07]}  Ke6 {[%clk 0:00:14]} 45. Kh2 {[%clk 0:00:07]}  Kd5 {[%clk 0:00:15]} 46. Kg1 {[%clk 0:00:08]}  Kc4 {[%clk 0:00:16]} 47. Kh2 {[%clk 0:00:09]}  Kd3 {[%clk 0:00:17]} 48. Kg1 {[%clk 0:00:09]}  Kc2 {[%clk 0:00:18]} 49. Bd4 {[%clk 0:00:10]}  Kd1 {[%clk 0:00:19]} 50. Be3 {[%clk 0:00:10]}  Bc4 {[%clk 0:00:20]} 51. Bd4 {[%clk 0:00:11]}  Ke2 {[%clk 0:00:20]} 52. Bc5 {[%clk 0:00:11]}  Kd3 {[%clk 0:00:18]} 53. Be7 {[%clk 0:00:10]}  Be6 {[%clk 0:00:19]} 54. Bg5 {[%clk 0:00:10]}  Kc4 {[%clk 0:00:20]} 55. Kh2 {[%clk 0:00:10]}  Kd5 {[%clk 0:00:21]} 56. Kg1 {[%clk 0:00:11]}  Kc6 {[%clk 0:00:22]} 57. Kh2 {[%clk 0:00:12]}  Kd7 {[%clk 0:00:23]} 58. Kg1 {[%clk 0:00:12]}  Ke8 {[%clk 0:00:23]} 59. Kh2 {[%clk 0:00:13]}  Kf7 {[%clk 0:00:24]} 60. Kg1 {[%clk 0:00:14]}  Kg6 {[%clk 0:00:25]} 61. Bh4 {[%clk 0:00:13]}  Bc4 {[%clk 0:00:24]} 62. Bd8 {[%clk 0:00:13]}  Kf5 {[%clk 0:00:24]} 63. Be7 {[%clk 0:00:14]}  Ke5 {[%clk 0:00:18]} 64. Bd8 {[%clk 0:00:14]}  Kd4 {[%clk 0:00:18]} 65. Bb6+ {[%clk 0:00:13]}  Kd3 {[%clk 0:00:19]} 66. Bc5 {[%clk 0:00:12]}  Ke2 {[%clk 0:00:19]} 67. Bb6 {[%clk 0:00:11]}  Ke1 {[%clk 0:00:20]} 68. Ba5+ {[%clk 0:00:11]}  Ke2 {[%clk 0:00:20]} 69. Bb6 {[%clk 0:00:12]}  Kd3 {[%clk 0:00:21]} 70. Bc5 {[%clk 0:00:12]}  Bd5 {[%clk 0:00:22]} 71. Bb6 {[%clk 0:00:12]}  Be6 {[%clk 0:00:23]} 72. Bc5 {[%clk 0:00:13]}  Kc4 {[%clk 0:00:23]} 73. Bb6 {[%clk 0:00:13]}  Kd5 {[%clk 0:00:24]} 74. Be3 {[%clk 0:00:13]}  Kc6 {[%clk 0:00:25]} 75. Bf4 {[%clk 0:00:14]}  Kd7 {[%clk 0:00:26]} 76. Be3 {[%clk 0:00:14]}  Ke8 {[%clk 0:00:27]} 77. Bd4 {[%clk 0:00:15]}  Kf7 {[%clk 0:00:28]} 78. Bc5 {[%clk 0:00:16]}  Kg6 {[%clk 0:00:29]} 79. Be7 {[%clk 0:00:16]}  Kf5 {[%clk 0:00:30]} 80. Bd8 {[%clk 0:00:16]}  Kg6 {[%clk 0:00:31]} 81. Be7 {[%clk 0:00:17]}  Kf7 {[%clk 0:00:32]} 82. Bd8 {[%clk 0:00:17]}  Kg6 {[%clk 0:00:32]} 83. Be7 {[%clk 0:00:17]} 1/2-1/2


[Site "https://www.chess.com"]